{"text_format":"1","workbook":"xlsx","n_sheets":6,"sheets":["Pokyny","Zastoupený","ZVSU-FO","ZVSU-PO","Vedoucí osoby","Číselník"],"not_rendered":{"charts":0,"images":0,"macros":1,"external_links":0,"defined_names":2,"comments":0,"pivot_tables":0},"unopened":[],"bounds":{"document_bytes":16777216,"sheet_cells":100000,"rows_first":2000,"rows_last":500,"rows_between":2000,"halvings":0,"cell_chars":16384,"cell_head_chars":4096},"cells_cut":0,"cells_raw":0,"read":"whole","date_system":"1900"}

{"sheet":"Pokyny","index":0,"n_rows":42,"n_cols":2,"rows_kept":42,"cut":false,"hidden":false,"merged":[]}
[]
[null,"Postup při vyplňování formuláře"]
[]
[null,"Na listu „Zastoupený“ vyplní zastoupený:"]
[null,"1. Identifikační údaje o své osobě v oblasti A pro právnickou osobu, v oblasti B pro fyzickou osobu.  "]
[]
[null,"Na listu „ZVSU-FO“ vyplní zastoupený informace o jednom nebo více zprostředkovatelích vázaného spotřebitelského úvěru (dále ZVSU jen) takto:"]
[null,"1. Ve sloupci 1 („Pořadové číslo“) se automaticky vyplní pořadové číslo záznamu od F1 do Fn, kde n se rovná počtu záznamů."]
[null,"2. Ve sloupci 2 („Druh zápisu (Nový, Změna, Výmaz)“) vyplní, o jaký druh zápisu se jedná. "]
[null,"a)     V případě, že se jedná o první zápis daného ZVSU do seznamu, vyplní písmeno \"N\"."]
[null,"   b)     V případě, že se jedná o změnu údajů o ZVSU již dříve zapsaném do seznamu nebo o změnu rozsahu jemu povolených služeb (činností), vyplní písmeno \"Z\". Je nutné vždy uvádět požadovaný stav po registraci. "]
[null,"c)     V případě, že se jedná o vymazání ZVSU ze seznamu, vyplní písmeno \"V\". V tomto případě se odstraní vztah mezi všemi typy zastoupeného a vedoucími osobami a ZVSU. "]
[null,"3. Ve sloupcích 3–17 vyplní identifikační údaje o ZVSU"]
[]
[null,"Na listu „ZVSU-PO“ vyplní zastoupený informace o jednom nebo více ZVSU takto:"]
[null,"1. Ve sloupci 1 („Pořadové číslo“) se automaticky vyplní pořadové číslo záznamu od P1 do Pn, kde \"N\" se rovná počtu záznamů."]
[null,"2. Ve sloupci 2 („Druh zápisu (Nový, Změna, Výmaz)“) vyplní, o jaký druh zápisu se jedná. "]
[null,"a)     V případě, že se jedná o první zápis daného ZVSU do seznamu, vyplní písmeno \"N\"."]
[null,"b)     V případě, že se jedná o změnu údajů o ZVSU již dříve zapsaném do seznamu nebo o změnu rozsahu jemu povolených služeb, vyplní písmeno \"Z\". Je nutné vždy uvádět požadovaný stav po registraci."]
[null,"c)     V případě, že se jedná o vymazání ZVSU ze seznamu, vyplní písmeno \"V\". V tomto případě se odstraní vztah mezi všemi typy zastoupeného a vedoucími osobami a ZVSU. "]
[null,"3. Ve sloupcích 3–12 vyplní identifikační údaje o ZVSU."]
[]
[null,"Na listu „Vedoucí osoby“ vyplní zastoupený informace o vedoucích osobách ZVSU takto:"]
[null,"1. Ve sloupci 1 („Pořadové číslo“) se automaticky vyplní pořadové číslo záznamu od 1 do n, kde n se rovná počtu záznamů."]
[null,"2. Ve sloupci 2 („Druh zápisu (Nový, Změna, Výmaz)“) vyplní, o jaký druh zápisu se jedná. "]
[null,"a)     V případě, že se jedná o první zápis dané vedoucí osoby do seznamu, vyplní písmeno \"N\"."]
[null,"b)     V případě, že se jedná o změnu údajů o vedoucí osobě již dříve zapsané do seznamu, vyplní písmeno \"Z\"."]
[null,"c)     V případě, že se jedná o vymazání vedoucí osoby ze seznamu, vyplní písmeno \"V\"."]
[null,"3. Ve sloupci 3 (\"Pořadové číslo ZVSU\") se doplní pořadové číslo přidělené ZVSU na listu \"ZVSU-FO\", nebo \"ZVSU-PO\". Pokud má již ZVSU přidělené IČO, tak stačí vyplnit IČO ve sloupci 4 a není tedy třeba vyplňovat tento sloupec. "]
[null,"4. Ve sloupci 4 („IČO ZVSU“) se vyplní identifikační číslo ZVSU, pro kterého se vedoucí osoba zadává. Pokud je vyplněný sloupec 3, tak již nění třeba zadávat. "]
[null,"5. Ve sloupcích 5–17 vyplní identifikační údaje o vedoucí osobě."]
[]
[null,"Obecná pravidla"]
[]
[null,"1. Pokud se jedná o druh záznamu \"Z\" (Změna), vyplní zastoupený požadovaný stav všech identifikačních údajů a požadovaný rozsah všech povolených činností u daného ZVSU. "]
[null,"2. Změna rozsahu činností znamená rozšíření i odebrání povolených činností. "]
[null,"3. Pokud se jedná o druh záznamu \"V\" (Výmaz), vyplní zastoupený pouze identifikační údaje ZVSU. Tento ZVSU bude vymazán ze seznamu, včetně všech jeho vedoucích osob."]
[null,"4. Do položky „Stát“ v adrese vyplní zastoupený kód ze sloupce „Kód státu“ podle číselníku zemí umístěného na listu „Číselník“. Pro Českou republiku platí kód \"CZ\""]
[null,"5. Pokud nebudou u ZVSU správně vyplněny položky „Identifikační číslo“ nebo „Datum narození“, nebude ZVSU zapsán do seznamu."]
[null,"6. Všechny datumy se uvádějí ve formátu d.m.rrrr"]
[null,"7. IČO se uvádí bez mezer"]
[null,"8. Množství posílaných dat je omezeno na 200 subjektů"]

{"sheet":"Zastoupený","index":1,"n_rows":13,"n_cols":1,"rows_kept":13,"cut":false,"hidden":false,"merged":[[9,0,9,2],[10,0,10,1],[11,0,11,1],[0,0,1,2],[7,0,7,1],[6,0,6,1],[5,0,5,2]]}
["Informace pro zápis do seznamu subjektů dle zákona o úvěru pro spotřebitele"]
[]
[]
["I. Základní identifikace zastoupeného"]
[]
["A. Právnická osoba"]
["Identifikační číslo"]
["Název / Obchodní firma"]
[]
["B. Fyzická osoba"]
["Identifikační číslo"]
["Jméno(a)"]
["Příjmení"]

{"sheet":"ZVSU-FO","index":2,"n_rows":105,"n_cols":16,"rows_kept":105,"cut":false,"hidden":false,"merged":[[3,8,3,15],[2,2,2,15],[3,6,4,6],[3,7,4,7],[2,0,4,0],[2,1,4,1],[3,2,4,2],[3,3,4,3],[3,4,4,4],[3,5,4,5]]}
["II. Zprostředkovatel vázaného spotřebitelského úvěru - fyzické osoby"]
["1.","2.","3.","4.","5.","6.","7.","9.","10.","11.","12.","13.","14.","15.","16.","17."]
["Pořadové číslo","Druh zápisu (Nový, Změna, Výmaz)","Identifikační údaje zprostředkovatele vázaného spotřebitelského úvěru"]
[null,null,"Titul před jménem","Jméno(a)","Příjmení","Titul za jménem","Datum narození","Identifikační číslo","Adresa bydliště"]
[null,null,null,null,null,null,null,null,"Ulice","Číslo popisné","Číslo orientační","Písmeno orientační","Část obce","Obec","PSČ","Stát"]
[{"$f":"IF(B6<>\"\",CONCATENATE(\"F\",1),\"\")","v":""}]
[{"$f":"IF(B7<>\"\",CONCATENATE(\"F\",(MID(A6,2,10)+1)),\"\")","v":""}]
[{"$f":"IF(B8<>\"\",CONCATENATE(\"F\",(MID(A7,2,10)+1)),\"\")","v":""}]
[""]
[""]
[""]
[""]
[""]
[""]
[""]
[""]
[""]
[""]
[""]
[""]
[""]
[""]
[""]
[""]
[""]
[""]
[""]
[""]
[""]
[""]
[""]
[""]
[""]
[""]
[""]
[""]
[""]
[""]
[""]
[""]
[""]
[""]
[""]
[""]
[""]
[""]
[""]
[""]
[""]
[""]
[""]
[""]
[""]
[""]
[""]
[""]
[""]
[""]
[""]
[""]
[""]
[""]
[""]
[""]
[""]
[""]
[""]
[""]
[""]
[""]
[""]
[{"$f":"IF(B72<>\"\",CONCATENATE(\"F\",(MID(A71,2,10)+1)),\"\")","v":""}]
[""]
[""]
[""]
[""]
[""]
[""]
[""]
[""]
[""]
[""]
[""]
[""]
[""]
[""]
[""]
[""]
[""]
[""]
[""]
[""]
[""]
[""]
[""]
[""]
[""]
[""]
[""]
[""]
[""]
[""]
[""]
[""]
[""]

{"sheet":"ZVSU-PO","index":3,"n_rows":105,"n_cols":12,"rows_kept":105,"cut":false,"hidden":false,"merged":[[2,0,4,0],[2,1,4,1],[3,2,4,2],[3,3,4,3],[2,2,2,11],[3,4,3,11]]}
["IV. Zprostředkovatel vázaného spotřebitelského úvěru - právnické osoby"]
["1.","2.","3.","4.","5.","6.","7.","8.","9.","10.","11.","12."]
["Pořadové číslo","Druh zápisu (Nový, Změna, Výmaz)","Identifikační údaje zprostředkovatele vázaného spotřebitelského úvěru"]
[null,null,"Identifikační číslo","Název / Obchodní firma","Adresa sídla"]
[null,null,null,null,"Ulice","Číslo popisné","Číslo orientační","Písmeno orientační","Část obce","Obec","PSČ","Stát"]
[{"$f":"IF(B6<>\"\",CONCATENATE(\"P\",1),\"\")","v":""}]
[{"$f":"IF(B7<>\"\",CONCATENATE(\"P\",(MID(A6,2,10)+1)),\"\")","v":""}]
[""]
[""]
[""]
[""]
[""]
[""]
[""]
[""]
[""]
[""]
[""]
[""]
[""]
[""]
[""]
[""]
[""]
[""]
[""]
[""]
[""]
[""]
[""]
[""]
[""]
[""]
[""]
[""]
[""]
[""]
[""]
[""]
[""]
[""]
[""]
[""]
[""]
[""]
[""]
[""]
[""]
[""]
[""]
[""]
[""]
[""]
[""]
[""]
[""]
[""]
[""]
[""]
[""]
[""]
[""]
[""]
[""]
[""]
[""]
[""]
[""]
[""]
[""]
[{"$f":"IF(B71<>\"\",CONCATENATE(\"P\",(MID(A70,2,10)+1)),\"\")","v":""}]
[""]
[""]
[""]
[""]
[""]
[""]
[""]
[""]
[""]
[""]
[""]
[""]
[""]
[""]
[""]
[""]
[""]
[""]
[""]
[""]
[""]
[""]
[""]
[""]
[""]
[""]
[""]
[""]
[""]
[""]
[""]
[""]
[""]
[""]

{"sheet":"Vedoucí osoby","index":4,"n_rows":106,"n_cols":17,"rows_kept":106,"cut":false,"hidden":false,"merged":[[4,15,5,15],[4,16,5,16],[2,0,5,0],[2,1,5,1],[2,2,2,3],[2,4,2,16],[3,2,5,2],[3,3,5,3],[3,4,5,4],[3,5,5,5],[3,6,5,6],[3,7,5,7],[3,8,5,8],[3,9,3,16],[4,9,5,9],[4,10,5,10],[4,11,5,11],[4,12,5,12],[4,13,5,13],[4,14,5,14]]}
["III. Vedoucí osoby Zprostředkovatele vázaného spotřebitelského úvěru - osoby odpovědné za zprostředkování spotřebitelského úvěru nebo osoby, které zprostředkování spotřebitelského úvěru řídí"]
["1.","2.","3.","4.","5.","6.","7.","8.","9.","10.","11.","12.","13.","14.","15.","16.","17."]
["Pořadové číslo","Druh zápisu (Nový, Změna, Výmaz)","Je nutné vyplnit jeden sloupeček.",null,"Identifikační údaje vedoucí osoby"]
[null,null,"Pořadové číslo ZVSU","IČO ZVSU","Titul před jménem","Jméno(a)","Příjmení","Titul za jménem","Datum narození","Adresa bydliště"]
[null,null,null,null,null,null,null,null,null,"Ulice","Číslo popisné","Číslo orientační","Písmeno orientační","Část obce","Obec","PSČ","Stát"]
[]
[{"$f":"IF(B7<>\"\",1,\"\")","v":""}]
[{"$f":"IF(B8<>\"\",A7+1,\"\")","v":""}]
[""]
[""]
[""]
[""]
[""]
[""]
[""]
[""]
[""]
[""]
[""]
[""]
[""]
[""]
[""]
[""]
[""]
[""]
[""]
[""]
[""]
[""]
[""]
[""]
[""]
[""]
[""]
[""]
[""]
[""]
[""]
[""]
[""]
[""]
[""]
[""]
[""]
[""]
[""]
[""]
[""]
[""]
[""]
[""]
[""]
[""]
[""]
[""]
[""]
[""]
[""]
[""]
[""]
[""]
[""]
[""]
[""]
[""]
[""]
[""]
[""]
[""]
[""]
[{"$f":"IF(B72<>\"\",A71+1,\"\")","v":""}]
[""]
[""]
[""]
[""]
[""]
[""]
[""]
[""]
[""]
[""]
[""]
[""]
[""]
[""]
[""]
[""]
[""]
[""]
[""]
[""]
[""]
[""]
[""]
[""]
[""]
[""]
[""]
[""]
[""]
[""]
[""]
[""]
[""]
[""]

{"sheet":"Číselník","index":5,"n_rows":251,"n_cols":2,"rows_kept":251,"cut":false,"hidden":false,"merged":[]}
[]
["Druh zápisu","Kód"]
["Nový","N"]
["Změna","Z"]
["Výmaz","V"]
[]
["Číselník států","Kód"]
["Česká republika","CZ"]
["Afghánistán","AF"]
["Albánská republika","AL"]
["Alžírská lidová demokratická republika","DZ"]
["Americká Samoa","AS"]
["Americké Panenské ostrovy","VI"]
["Andorrské knížectví","AD"]
["Angolská republika","AO"]
["Anguilla","AI"]
["Antarktida","AQ"]
["Antigua a Barbuda","AG"]
["Argentinská republika","AR"]
["Arménská republika","AM"]
["Aruba","AW"]
["Austrálie","AU"]
["Azerbajdžánská republika","AZ"]
["Bahamské společenství","BS"]
["Bahrajnské království","BH"]
["Bangladéšská lidová republika","BD"]
["Barbados","BB"]
["Belgické království","BE"]
["Belize","BZ"]
["Běloruská republika","BY"]
["Beninská republika","BJ"]
["Bermudy (brit.)","BM"]
["Bhútánské království","BT"]
["Bolívarovská republika Venezuela","VE"]
["Bolivijská republika","BO"]
["Bosna a Hercegovina","BA"]
["Botswanská republika","BW"]
["Bouvetův ostrov","BV"]
["Brazilská federativní republika","BR"]
["Britské indickooceánské území","IO"]
["Britské Panenské ostrovy","VG"]
["Brunej Darussalam","BN"]
["Bulharská republika","BG"]
["Burkina Faso","BF"]
["Burundská republika","BI"]
["Bývalá jugoslávská republika Makedonie","MK"]
["Cookovy ostrovy","CK"]
["Čadská republika","TD"]
["Čínská lidová republika","CN"]
["Dánské království","DK"]
["Demokratická republika Svatý Tomáš a Princovův ostrov","ST"]
["Dominické společenství","DM"]
["Dominikánská republika","DO"]
["Džibutská republika","DJ"]
["Egyptská arabská republika","EG"]
["Ekvádorská republika","EC"]
["Eritrea","ER"]
["Estonská republika","EE"]
["Etiopská federativní demokratická republika","ET"]
["Faerské ostrovy","FO"]
["Falklandy (Malvíny)","FK"]
["Federativní státy  Mikronésie","FM"]
["Filipínská republika","PH"]
["Finská republika","FI"]
["Francouzská Guyana","GF"]
["Francouzská jižní území","TF"]
["Francouzská Polynésie","PF"]
["Francouzská republika","FR"]
["Gabonská republika","GA"]
["Gambijská republika","GM"]
["Ghanská republika","GH"]
["Gibraltar (brit.)","GI"]
["Grenada","GD"]
["Grónsko","GL"]
["Gruzie","GE"]
["Guadeloupe","GP"]
["Guam","GU"]
["Guatemalská republika","GT"]
["Guayanská republika","GY"]
["Guernsey, C.I.","GG"]
["Guinejská republika","GN"]
["Haitská republika","HT"]
["Heardův ostrov a McDonaldovy ostrovy","HM"]
["Honduraská republika","HN"]
["Chilská republika","CL"]
["Chorvatská republika","HR"]
["Indická republika","IN"]
["Indonéská republika","ID"]
["Irácká republika","IQ"]
["Íránská islámská republika","IR"]
["Irsko","IE"]
["Islandská republika","IS"]
["Italská republika","IT"]
["Izraelský stát","IL"]
["Jamajka","JM"]
["Japonsko","JP"]
["Jemenská republika","YE"]
["Jersey, C.I.","JE"]
["Jihoafrická republika","ZA"]
["Jižní Georgie a Jižní Sandwichovy ostrovy","GS"]
["Jordánské hášimovské království","JO"]
["Kajmanské ostrovy (brit.)","KY"]
["Kambodžské království","KH"]
["Kamerunská republika","CM"]
["Kanada","CA"]
["Kapverdská republika","CV"]
["Kazašská republika","KZ"]
["Keňská republika","KE"]
["Kokosové ostrovy","CC"]
["Kolumbijská republika","CO"]
["Komorský svaz","KM"]
["Konžská demokratická republika","CD"]
["Konžská republika","CG"]
["Korejská lidově demokratická republika","KP"]
["Korejská republika","KR"]
["Kostarická republika","CR"]
["Království Tonga","TO"]
["Kubánská republika","CU"]
["Kuvajtský stát","KW"]
["Kyperská republika","CY"]
["Laoská lidově demokratická republika","LA"]
["Lesothské království","LS"]
["Libanonská republika","LB"]
["Liberijská republika","LR"]
["Libyjská arabská  lidová socialistická džamahírije","LY"]
["Lichtenštejnské knížectví","LI"]
["Litevská republika","LT"]
["Lotyšská republika","LV"]
["Lucemburské velkovévodství","LU"]
["Madagaskarská republika","MG"]
["Maďarská republika","HU"]
["Malajsie","MY"]
["Malawská republika","MW"]
["Maledivská republika","MV"]
["Malijská republika","ML"]
["Maltská republika","MT"]
["Marocké království","MA"]
["Martinik","MQ"]
["Mauricijská republika","MU"]
["Mauritánská islámská republika","MR"]
["Mayotte","YT"]
["Menší odlehlé ostrovy USA","UM"]
["Moldavská republika","MD"]
["Monacké knížectví","MC"]
["Mongolsko","MN"]
["Montserrat (brit.)","MS"]
["Mosambická republika","MZ"]
["Myanmarský svaz","MM"]
["Namibijská republika","NA"]
["Nauruská republika","NR"]
["Nepálské království","NP"]
["Nezávislý stát Západní Samoa","WS"]
["Nigerijská federativní republika","NG"]
["Nigerská republika","NE"]
["Nikaragujská republika","NI"]
["Niue","NU"]
["Nizozemské Antily","AN"]
["Nizozemské království","NL"]
["Norfolk","NF"]
["Norské království","NO"]
["Nová Kaledonie","NC"]
["Nový Zéland","NZ"]
["Okupovaná palestinská  území","PS"]
["Ostrov Man","IM"]
["Pákistánská islámská republika","PK"]
["Palauská republika","PW"]
["Panamská republika","PA"]
["Panamské průplavové pásmo","PZ"]
["Papua  Nová Guinea","PG"]
["Paraguayská republika","PY"]
["Peruánská republika","PE"]
["Pitcairn","PN"]
["Polská republika","PL"]
["Portoriko","PR"]
["Portugalská republika","PT"]
["Rakouská republika","AT"]
["Republika Černá Hora","ME"]
["Republika Fidžijské ostrovy","FJ"]
["Republika Guinea - Bissau","GW"]
["Republika Kiribati","KI"]
["Republika Kyrgyzstán","KG"]
["Republika Marshallovy ostrovy","MH"]
["Republika Pobřeží  slonoviny","CI"]
["Republika Rovníková Guinea","GQ"]
["Republika Sierra Leone","SL"]
["Republika Srbsko","RS"]
["Republika Tadžikistán","TJ"]
["Republika Trinidad a Tobago","TT"]
["Republika Uzbekistán","UZ"]
["Republika Zimbabwe","ZW"]
["Réunion","RE"]
["Rumunsko","RO"]
["Ruská federace","RU"]
["Rwandská republika","RW"]
["Řecká republika","GR"]
["Saint Pierre a Miquelon","PM"]
["Salvadorská republika","SV"]
["Sanmarinská republika","SM"]
["Saúdskoarabské království","SA"]
["Senegalská republika","SN"]
["Seychelská republika","SC"]
["Singapurská republika","SG"]
["Sjednocená republika Tanzanie","TZ"]
["Slovenská republika","SK"]
["Slovinská republika","SI"]
["Somálská republika","SO"]
["Spojené arabské emiráty","AE"]
["Spojené království Velké Británie a Severního Irska","GB"]
["Spojené státy americké","US"]
["Spojené státy mexické","MX"]
["Společenství Severních Marian","MP"]
["Spolková republika Německo","DE"]
["Srílanská demokratická socialistická republika","LK"]
["Stát Katar","QA"]
["Středoafrická republika","CF"]
["Súdánská republika","SD"]
["Sultanát Omán","OM"]
["Surinamská republika","SR"]
["Svalbard a ostrov Jan Mayen","SJ"]
["Svatá Helena","SH"]
["Svatá Lucie","LC"]
["Svatý Kryštof a Nevis","KN"]
["Svatý stolec (Vatikánský městký stát)","VA"]
["Svatý Vincenc a Grenadiny","VC"]
["Svazijské království","SZ"]
["Syrská arabská republika","SY"]
["Šalamounovy ostrovy","SB"]
["Španělské království","ES"]
["Švédské království","SE"]
["Švýcarská konfederace","CH"]
["Thajské království","TH"]
["Tchaj-wan, čínská provincie","TW"]
["Timor - Leste","TL"]
["Tokelau","TK"]
["Tožská  republika","TG"]
["Tuniská republika","TN"]
["Turecká republika","TR"]
["Turkmenistán","TM"]
["Turks a Caicos (brit.)","TC"]
["Tuvalu","TV"]
["Ugandská republika","UG"]
["Ukrajina","UA"]
["Uruguayská východní republika","UY"]
["Vánoční ostrov","CX"]
["Vanuatská republika","VU"]
["Vietnamská socialistická republika","VN"]
["Wallis a Futuna","WF"]
["Zambijská republika","ZM"]
["Západní Sahara","EH"]
["Zvláštní administr. oblast Čínské lidové republiky Hongkong","HK"]
["Zvláštní adminstr. oblast Čínské lidové republiky, Macao","MO"]